fUSD/lending_fUSD_20250807
["ID","MTS","AMOUNT","RATE_DAILY","PERIOD"]
[377808766,1754562646896,-400.0,0.0001999,2]
[377808769,1754562646905,-1292.43,0.0001999,2]
[377808770,1754562646915,-400.0,0.0001999,2]
[377808773,1754562646924,-400.0,0.0001999,2]
[377808774,1754562646934,-400.0,0.0001999,2]
[377808777,1754562646943,-400.0,0.0001999,2]
[377808778,1754562646952,-984.23,0.0001999,2]
[377808780,1754562646962,-1434.88,0.0001999,2]
[377808783,1754562646971,-400.0,0.0001999,2]
[377808785,1754562646981,-400.0,0.0001999,2]
[377808787,1754562646991,-400.0,0.0001999,2]
[377808788,1754562647003,-1937.81,0.0001999,2]
[377808790,1754562647013,-400.0,0.0001999,2]
[377808792,1754562647023,-400.0,0.0001999,2]
[377808794,1754562647033,-400.0,0.0001999,2]
[377808796,1754562647043,-400.0,0.0001999,2]
[377808798,1754562647054,-682.72,0.0001999,2]
[377808800,1754562647064,-400.0,0.0001999,2]
[377808802,1754562647075,-1629.09,0.0001999,2]
[377808805,1754562647085,-400.0,0.0001999,2]
[377808807,1754562647096,-400.0,0.0001999,2]
[377808808,1754562647106,-400.97129499,0.0001999,2]
[377808811,1754562647116,-400.0,0.0001999,2]
[377808813,1754562647127,-550.62,0.0001999,2]
[377808815,1754562647138,-400.0,0.0001999,2]
[377808817,1754562647148,-400.0,0.0001999,2]
[377808819,1754562647159,-400.86741493,0.0001999,2]
[377808821,1754562647170,-400.0,0.0001999,2]
[377808822,1754562647183,-400.0,0.0001999,2]
[377808825,1754562647194,-400.0,0.0001999,2]
[377808826,1754562647205,-400.0,0.0001999,2]
[377808828,1754562647217,-680.5,0.0001999,2]
[377808831,1754562647231,-1162.29,0.0001999,2]
[377808833,1754562647242,-400.0,0.0001999,2]
[377808835,1754562647258,-401.12724562,0.0001999,2]
[377808837,1754562647271,-400.0,0.0001999,2]
[377808839,1754562647283,-400.0,0.0001999,2]
[377808841,1754562647294,-1782.29,0.0001999,2]
[377808842,1754562647304,-400.0,0.0001999,2]
[377808844,1754562647317,-400.0,0.0001999,2]
[377808846,1754562647328,-527.85390124,0.0001999,2]
[377808848,1754562647338,-400.0,0.0001999,2]
[377808850,1754562647349,-401.15062805,0.0001999,2]
[377808851,1754562647360,-1759.18,0.0001999,2]
[377808853,1754562647371,-1520.97,0.0001999,2]
[377808855,1754562647382,-400.0,0.0001999,2]
[377808857,1754562647394,-400.0,0.0001999,2]
[377808859,1754562647406,-400.0,0.0001999,2]
[377808861,1754562647418,-1082.93,0.0001999,2]
[377808863,1754562647428,-400.0,0.0001999,2]
[377808865,1754562647439,-400.0,0.0001999,2]
[377808866,1754562647451,-401.63553616,0.0001999,2]
[377808868,1754562647462,-1534.44,0.0001999,2]
[377808870,1754562647472,-400.0,0.0001999,2]
[377808872,1754562647485,-1986.89,0.0001999,2]
[377808874,1754562647500,-400.0,0.0001999,2]
[377808876,1754562647512,-400.0,0.0001999,2]
[377808878,1754562647525,-400.0,0.0001999,2]
[377808880,1754562647535,-400.0,0.0001999,2]
[377808882,1754562647547,-400.0,0.0001999,2]
[377808884,1754562647558,-1191.49,0.0001999,2]
[377808886,1754562647570,-400.0,0.0001999,2]
[377808888,1754562647581,-400.0,0.0001999,2]
[377808890,1754562647593,-400.0,0.0001999,2]
[377808892,1754562647604,-400.0,0.0001999,2]
[377808894,1754562647615,-400.0,0.0001999,2]
[377808896,1754562647626,-500.86599768,0.0001999,2]
[377808898,1754562647636,-2793.05,0.0001999,2]
[377808900,1754562647647,-400.0,0.0001999,2]
[377808902,1754562647657,-405.54,0.0001999,2]
[377808904,1754562647668,-401.11864574,0.0001999,2]
[377808906,1754562647678,-400.0,0.0001999,2]
[377808908,1754562647688,-400.0,0.0001999,2]
[377808910,1754562647699,-2267.94,0.0001999,2]
[377808911,1754562647710,-1350.98,0.0001999,2]
[377808913,1754562647724,-400.0,0.0001999,2]
[377808915,1754562647734,-400.0,0.0001999,2]
[377808917,1754562647744,-400.0,0.0001999,2]
[377808919,1754562647756,-400.0,0.0001999,2]
[377808921,1754562647766,-526.22420541,0.0001999,2]
[377808923,1754562647777,-1760.61,0.0001999,2]
[377808925,1754562647789,-400.0,0.0001999,2]
[377808927,1754562647800,-400.0,0.0001999,2]
[377808929,1754562647810,-400.0,0.0001999,2]
[377808931,1754562647821,-400.0,0.0001999,2]
[377808933,1754562647831,-400.0,0.0001999,2]
[377808935,1754562647841,-401.63481957,0.0001999,2]
[377808937,1754562647851,-400.0,0.0001999,2]
[377808939,1754562647862,-1758.5,0.0001999,2]
[377808941,1754562647873,-469.3088686,0.0001999,2]
[377808943,1754562647882,-1412.1,0.0001999,2]
[377808945,1754562647892,-400.0,0.0001999,2]
[377808947,1754562647904,-971.4,0.0001999,2]
[377808949,1754562647915,-1823.72,0.0001999,2]
[377808951,1754562647925,-400.0,0.0001999,2]
[377808952,1754562647935,-690.8,0.0001999,2]
[377808953,1754562647945,-402.64708987,0.0001999,2]
[377808954,1754562647955,-400.0,0.0001999,2]
[377808955,1754562647965,-493.69,0.0001999,2]
[377808956,1754562647976,-400.0,0.0001999,2]
[377808957,1754562647986,-400.0,0.0001999,2]
[377808958,1754562648000,-400.80644196,0.0001999,2]
[377808959,1754562648011,-400.0,0.0001999,2]
[377808960,1754562648021,-400.0,0.0001999,2]
[377808961,1754562648034,-1542.36,0.0001999,2]
[377808962,1754562648046,-1185.0,0.0001999,2]
[377808963,1754562648058,-400.0,0.0001999,2]
[377808964,1754562648070,-400.0,0.0001999,2]
[377808965,1754562648083,-400.0,0.0001999,2]
[377808966,1754562648094,-400.0,0.0001999,2]
[377808967,1754562648106,-400.0,0.0001999,2]
[377808968,1754562648119,-1487.31,0.0001999,2]
[377808969,1754562648129,-400.0,0.0001999,2]
[377808970,1754562648140,-400.0,0.0001999,2]
[377808971,1754562648151,-400.0,0.0001999,2]
[377808973,1754562648163,-400.0,0.0001999,2]
[377808975,1754562648175,-400.0,0.0001999,2]
[377808976,1754562648187,-1567.39,0.0001999,2]
[377808978,1754562648199,-2314.68,0.0001999,2]
[377808980,1754562648219,-400.0,0.0001999,2]
[377808982,1754562648231,-303.38212688,0.0001999,2]
[377808984,1754562648243,-400.0,0.0001999,2]
[377808986,1754562648260,-500.0,0.0001999,2]
[377808988,1754562648272,-2181.72,0.0001999,2]
[377808990,1754562648283,-2192.05,0.0001999,2]
[377808992,1754562648295,-538.41017635,0.0001999,2]
[377808994,1754562648307,-456.78,0.0001999,2]
[377808996,1754562648319,-3697.52,0.0001999,2]
[377808998,1754562648330,-400.0,0.0001999,2]
[377809000,1754562648342,-196.69174993,0.0001999,2]
[377809002,1754562648353,-1993.66,0.0001999,2]
[377809004,1754562648364,-2312.51,0.0001999,2]
[377809006,1754562648375,-400.0,0.0001999,2]
[377809008,1754562648387,-400.0,0.0001999,2]
[377809010,1754562648398,-400.0,0.0001999,2]
[377809012,1754562648409,-2752.06,0.0001999,2]
[377809014,1754562648421,-400.0,0.0001999,2]
[377809016,1754562648431,-400.0,0.0001999,2]
[377809018,1754562648444,-2608.6,0.0001999,2]
[377809020,1754562648455,-2096.82,0.0001999,2]
[377809022,1754562648465,-400.0,0.0001999,2]
[377809024,1754562648477,-400.0,0.0001999,2]
[377809026,1754562648488,-1069.07,0.0001999,2]
[377809027,1754562648500,-1021.98,0.0001999,2]
[377809029,1754562648511,-400.0,0.0001999,2]
[377809031,1754562648523,-1204.79,0.0001999,2]
[377809033,1754562648535,-587.05,0.0001999,2]
[377809036,1754562648546,-1988.05,0.0001999,2]
[377809037,1754562648558,-2519.95,0.0001999,2]
[377809039,1754562648570,-1728.83,0.0001999,2]
[377809041,1754562648582,-400.0,0.0001999,2]
[377809043,1754562648594,-1303.4,0.0001999,2]
[377809045,1754562648606,-466.97,0.0001999,2]
[377809047,1754562648617,-400.0,0.0001999,2]
[377809050,1754562648630,-686.1,0.0001999,2]
[377809051,1754562648642,-400.0,0.0001999,2]
[377809053,1754562648653,-400.0,0.0001999,2]
[377809055,1754562648664,-400.0,0.0001999,2]
[377809057,1754562648677,-2343.35,0.0001999,2]
[377809059,1754562648688,-400.0,0.0001999,2]
[377809061,1754562648699,-1933.26,0.0001999,2]
[377809064,1754562648710,-2372.88,0.0001999,2]
[377809065,1754562648720,-1722.68,0.0001999,2]
[377809067,1754562648730,-400.0,0.0001999,2]
[377809069,1754562648741,-400.0,0.0001999,2]
[377809071,1754562648757,-400.0,0.0001999,2]
[377809073,1754562648768,-400.0,0.0001999,2]
[377809076,1754562648784,-400.0,0.0001999,2]
[377809078,1754562648799,-563.17,0.0001999,2]
[377809080,1754562648810,-759.19,0.0001999,2]
[377809081,1754562648821,-1252.29,0.0001999,2]
[377809083,1754562648832,-1969.26,0.0001999,2]
[377809086,1754562648843,-2152.36,0.0001999,2]
[377809088,1754562648855,-400.0,0.0001999,2]
[377809090,1754562648865,-400.0,0.0001999,2]
[377809092,1754562648875,-1892.92,0.0001999,2]
[377809094,1754562648885,-400.0,0.0001999,2]
[377809095,1754562648896,-3544.9,0.0001999,2]
[377809097,1754562648906,-3458.86,0.0001999,2]
[377809099,1754562648915,-1987.02,0.0001999,2]
[377809101,1754562648925,-4320.87,0.0001999,2]
[377809103,1754562648935,-400.0,0.0001999,2]
[377809105,1754562648944,-830.84,0.0001999,2]
[377809107,1754562648954,-400.0,0.0001999,2]
[377809109,1754562648963,-400.0,0.0001999,2]
[377809111,1754562648973,-1374.02,0.0001999,2]
[377809113,1754562648983,-844.32,0.0001999,2]
[377809115,1754562648994,-2021.72,0.0001999,2]
[377809117,1754562649007,-400.0,0.0001999,2]
[377809119,1754562649018,-1608.08,0.0001999,2]
[377809121,1754562649027,-4128.92,0.0001999,2]
[377809123,1754562649036,-493.41939468,0.0001999,2]
[377809125,1754562649046,-400.0,0.0001999,2]
[377809126,1754562649056,-400.0,0.0001999,2]
[377809128,1754562649065,-1930.41,0.0001999,2]
[377809130,1754562649075,-400.0,0.0001999,2]
[377809132,1754562649085,-400.0,0.0001999,2]
[377809134,1754562649094,-1705.41,0.0001999,2]
[377809136,1754562649104,-59874.103967,0.0001999,2]
[377809138,1754562649113,-400.0,0.0001999,2]
[377809140,1754562649123,-2384.41,0.0001999,2]
[377809142,1754562649133,-55496.029132,0.0001999,2]
[377809144,1754562649142,-400.0,0.0001999,2]
[377809146,1754562649151,-1625.13,0.0001999,2]
[377809148,1754562649161,-4818.930776,0.0001999,2]
[377809150,1754562649171,-1705.5,0.0001999,2]
[377809152,1754562649181,-400.0,0.0001999,2]
[377809154,1754562649190,-400.0,0.0001999,2]
[377809156,1754562649200,-2799.88,0.0001999,2]
[377809158,1754562649209,-400.0,0.0001999,2]
[377809160,1754562649219,-400.0,0.0001999,2]
[377809162,1754562649229,-3699.097041,0.0001999,2]
[377809164,1754562649239,-400.0,0.0001999,2]
[377809166,1754562649251,-400.0,0.0001999,2]
[377809168,1754562649261,-2700.97,0.0001999,2]
[377809170,1754562649272,-23624.7067,0.0001999,2]
[377809172,1754562649283,-1860.04,0.0001999,2]
[377809174,1754562649293,-400.0,0.0001999,2]
[377809176,1754562649303,-1115.54,0.0001999,2]
[377809178,1754562649312,-400.0,0.0001999,2]
[377809179,1754562649322,-400.0,0.0001999,2]
[377809181,1754562649332,-2472.17,0.0001999,2]
[377809183,1754562649342,-400.0,0.0001999,2]
[377809185,1754562649351,-1729.58,0.0001999,2]
[377809187,1754562649361,-1551.79,0.0001999,2]
[377809189,1754562649371,-400.0,0.0001999,2]
[377809191,1754562649381,-432.37185379,0.0001999,2]
[377809193,1754562649397,-1979.62,0.0001999,2]
[377809195,1754562649407,-530.37,0.0001999,2]
[377809197,1754562649416,-2065.14,0.0001999,2]
[377809199,1754562649426,-303.69808315,0.0001999,2]
[377809201,1754562649439,-518.44,0.0001999,2]
[377809203,1754562649450,-400.0,0.0001999,2]
[377809205,1754562649463,-402.33491942,0.0001999,2]
[377809207,1754562649473,-436.51,0.0001999,2]
[377809209,1754562649483,-2063.14,0.0001999,2]
[377809211,1754562649494,-400.0,0.0001999,2]
[377809213,1754562649508,-400.0,0.0001999,2]
[377809215,1754562649519,-400.0,0.0001999,2]
[377809217,1754562649530,-400.0,0.0001999,2]
[377809219,1754562649541,-12606.49,0.0001999,2]
[377809221,1754562649553,-400.0,0.0001999,2]
[377809223,1754562649564,-400.0,0.0001999,2]
[377809225,1754562649575,-2194.68,0.0001999,2]
[377809227,1754562649586,-478.34497161,0.0001999,2]
[377809229,1754562649597,-1955.9,0.0001999,2]
[377809231,1754562649609,-1999.44,0.0001999,2]
[377809233,1754562649620,-402.03023946,0.0001999,2]
[377809235,1754562649632,-1971.45,0.0001999,2]
[377809237,1754562649643,-923.49,0.0001999,2]
[377809239,1754562649653,-400.0,0.0001999,2]
[377809241,1754562649664,-400.0,0.0001999,2]
[377809243,1754562649674,-400.0,0.0001999,2]
[377809245,1754562649684,-2440.94,0.0001999,2]
[377809247,1754562649694,-400.0,0.0001999,2]
[377809248,1754562649704,-400.0,0.0001999,2]
[377809250,1754562649715,-5372.25,0.0001999,2]
[377809252,1754562649724,-2199.6,0.0001999,2]
[377809254,1754562649733,-4895.75,0.0001999,2]
[377809256,1754562649743,-500.0,0.0001999,2]
[377809258,1754562649755,-400.0,0.0001999,2]
[377809260,1754562649765,-531.35346292,0.0001999,2]
[377809262,1754562649776,-400.0,0.0001999,2]
[377809264,1754562649786,-2406.08,0.0001999,2]
[377809266,1754562649796,-1908.84,0.0001999,2]
[377809268,1754562649805,-400.0,0.0001999,2]
[377809270,1754562649814,-400.0,0.0001999,2]
[377809272,1754562649823,-3294.67,0.0001999,2]
[377809274,1754562649833,-1790.73,0.0001999,2]
[377809276,1754562649842,-485.46,0.0001999,2]
[377809278,1754562649851,-400.0,0.0001999,2]
[377809280,1754562649860,-400.0,0.0001999,2]
[377809282,1754562649870,-1182.8,0.0001999,2]
[377809284,1754562649879,-400.0,0.0001999,2]
[377809286,1754562649889,-400.0,0.00019991,2]
[377809288,1754562649898,-400.0,0.00019991,2]
[377809290,1754562649907,-400.0,0.00019991,2]
[377809292,1754562649917,-400.0,0.00019991,2]
[377809294,1754562649925,-400.0,0.00019991,2]
[377809296,1754562649935,-400.0,0.00019991,2]
[377809298,1754562649944,-400.0,0.00019991,2]
[377809300,1754562649953,-400.0,0.00019991,2]
[377809302,1754562649962,-400.0,0.00019991,2]
[377809304,1754562649971,-400.0,0.00019991,2]
[377809306,1754562649980,-400.0,0.00019991,2]
[377809308,1754562649990,-400.0,0.00019991,2]
[377809310,1754562650001,-400.0,0.00019991,2]
[377809312,1754562650011,-400.0,0.00019991,2]
[377809314,1754562650020,-401.28527456,0.00019991,2]
[377809316,1754562650029,-400.0,0.00019991,2]
[377809318,1754562650039,-400.0,0.00019991,2]
[377809320,1754562650048,-400.0,0.00019991,2]
[377809322,1754562650058,-401.17223319,0.00019991,2]
[377809324,1754562650067,-401.81863098,0.00019991,2]
[377809326,1754562650077,-400.0,0.00019991,2]
[377809328,1754562650086,-400.0,0.00019991,2]
[377809330,1754562650095,-400.0,0.00019991,2]
[377809332,1754562650105,-400.0,0.00019991,2]
[377809334,1754562650114,-400.0,0.00019991,2]
[377809336,1754562650123,-400.0,0.00019991,2]
[377809338,1754562650133,-400.0,0.00019991,2]
[377809340,1754562650144,-400.0,0.00019991,2]
[377809342,1754562650155,-400.0,0.00019991,2]
[377809344,1754562650166,-400.0,0.00019991,2]
[377809346,1754562650177,-400.0,0.00019991,2]
[377809348,1754562650187,-400.0,0.00019991,2]
[377809350,1754562650197,-400.0,0.00019991,2]
[377809352,1754562650207,-400.0,0.00019991,2]
[377809354,1754562650217,-400.0,0.00019991,2]
[377809356,1754562650227,-400.0,0.00019991,2]
[377809358,1754562650236,-400.0,0.00019991,2]
[377809360,1754562650246,-400.0,0.00019991,2]
[377809362,1754562650260,-400.0,0.00019991,2]
[377809364,1754562650269,-500.0,0.00019991,2]
[377809366,1754562650278,-510.20582349,0.00019991,2]
[377809368,1754562650288,-400.0,0.00019991,2]
[377809370,1754562650298,-400.0,0.00019991,2]
[377809372,1754562650307,-400.0,0.00019991,2]
[377809374,1754562650317,-524.72,0.00019991,2]
[377809376,1754562650327,-400.0,0.00019991,2]
[377809378,1754562650336,-393.20862491,0.00019991,2]
[377809380,1754562650345,-643.1,0.00019991,2]
[377809382,1754562650355,-718.26,0.00019991,2]
[377809384,1754562650366,-400.0,0.00019991,2]
[377809386,1754562650375,-400.0,0.00019991,2]
[377809388,1754562650383,-400.0,0.00019991,2]
[377809390,1754562650396,-400.0,0.00019991,2]
[377809392,1754562650406,-400.0,0.00019991,2]
[377809394,1754562650417,-1919.58,0.00019991,2]
[377809396,1754562650428,-410.54,0.00019991,2]
[377809398,1754562650440,-616.83,0.00019991,2]
[377809400,1754562650450,-400.0,0.00019991,2]
[377809402,1754562650461,-697.46,0.00019991,2]
[377809404,1754562650472,-538.25,0.00019991,2]
[377809406,1754562650482,-415.4,0.00019991,2]
[377809409,1754562650492,-390.21944727,0.00019991,2]
[377809410,1754562650505,-400.0,0.00019991,2]
[377809412,1754562650513,-400.0,0.00019991,2]
[377809414,1754562650523,-400.0,0.00019991,2]
[377809416,1754562650532,-400.94368303,0.00019991,2]
[377809418,1754562650541,-400.0,0.00019991,2]
[377809420,1754562650550,-400.0,0.00019991,2]
[377809422,1754562650560,-503.24,0.00019991,2]
[377809424,1754562650569,-1059.37,0.00019991,2]
[377809426,1754562650579,-400.0,0.00019991,2]
[377809428,1754562650588,-400.0,0.00019991,2]
[377809430,1754562650598,-409.95,0.00019991,2]
[377809432,1754562650607,-400.0,0.00019991,2]
[377809434,1754562650617,-1665.31,0.00019991,2]
[377809436,1754562650626,-400.0,0.00019991,2]
[377809438,1754562650635,-400.0,0.00019991,2]
[377809440,1754562650644,-400.0,0.00019991,2]
[377809442,1754562650653,-400.0,0.00019991,2]
[377809444,1754562650663,-400.0,0.00019991,2]
[377809446,1754562650673,-400.0,0.00019991,2]
[377809448,1754562650682,-400.0,0.00019991,2]
[377809450,1754562650690,-400.0,0.00019991,2]
[377809452,1754562650699,-885.32,0.00019991,2]
[377809454,1754562650709,-400.0,0.00019991,2]
[377809456,1754562650718,-437.62,0.00019991,2]
[377809458,1754562650727,-400.0,0.00019991,2]
[377809460,1754562650736,-689.7,0.00019991,2]
[377809462,1754562650745,-400.0,0.00019991,2]
[377809464,1754562650754,-400.0,0.00019991,2]
[377809466,1754562650763,-250.0,0.00019991,2]
[377809468,1754562650774,-400.0,0.00019991,2]
[377809470,1754562650783,-400.0,0.00019991,2]
[377809472,1754562650792,-400.0,0.00019991,2]
[377809474,1754562650802,-400.0,0.00019991,2]
[377809475,1754562650811,-400.0,0.00019991,2]
[377809477,1754562650821,-865.32,0.00019991,2]
[377809479,1754562650830,-400.0,0.00019991,2]
[377809481,1754562650840,-400.0,0.00019991,2]
[377809483,1754562650849,-400.0,0.00019991,2]
[377809485,1754562650859,-400.0,0.00019991,2]
[377809487,1754562650868,-400.0,0.00019991,2]
[377809489,1754562650877,-954.15,0.00019991,2]
[377809491,1754562650885,-658.85,0.00019991,2]
[377809493,1754562650895,-400.0,0.00019991,2]
[377809496,1754562650905,-400.0,0.00019991,2]
[377809498,1754562650914,-565.15,0.00019991,2]
[377809499,1754562650924,-400.0,0.00019991,2]
[377809501,1754562650933,-400.0,0.00019991,2]
[377809504,1754562650943,-400.0,0.00019991,2]
[377809506,1754562650953,-400.0,0.00019991,2]
[377809508,1754562650963,-400.0,0.00019991,2]
[377809510,1754562650972,-424.77,0.00019991,2]
[377809512,1754562650982,-400.0,0.00019991,2]
[377809514,1754562650991,-808.06,0.00019991,2]
[377809516,1754562651002,-400.0,0.00019991,2]
[377809518,1754562651011,-400.0,0.00019991,2]
[377809532,1754562651020,-1232.04,0.00019991,2]
[377809537,1754562651177,-400.0,0.00019991,2]
[377809539,1754562651187,-873.83,0.00019991,2]
[377809541,1754562651196,-400.0,0.00019991,2]
[377809543,1754562651205,-400.0,0.00019991,2]
[377809545,1754562651215,-400.0,0.00019991,2]
[377809547,1754562651224,-400.0,0.00019991,2]
[377809549,1754562651234,-400.0,0.00019991,2]
[377809551,1754562651245,-1465.74,0.00019991,2]
[377809553,1754562651258,-400.0,0.00019991,2]
[377809555,1754562651267,-813.57,0.00019991,2]
[377809557,1754562651277,-464.75,0.00019991,2]
[377809559,1754562651287,-400.0,0.00019991,2]
[377809561,1754562651296,-403.52699305,0.00019991,2]
[377809563,1754562651305,-400.0,0.00019991,2]
[377809566,1754562651315,-400.0,0.00019991,2]
[377809568,1754562651324,-584.47,0.00019991,2]
[377809570,1754562651335,-400.0,0.00019991,2]
[377809571,1754562651345,-730.0,0.00019991,2]
[377809574,1754562651355,-400.0,0.00019991,2]
[377809576,1754562651364,-400.0,0.00019991,2]
[377809578,1754562651374,-533.33,0.00019991,2]
[377809579,1754562651383,-400.0,0.00019991,2]
[377809581,1754562651397,-1414.17,0.00019991,2]
[377809584,1754562651406,-400.0,0.00019991,2]
[377809585,1754562651416,-400.0,0.00019991,2]
[377809586,1754562651425,-400.0,0.00019991,2]
[377809587,1754562651436,-1655.5,0.00019991,2]
[377809588,1754562651445,-400.0,0.00019991,2]
[377809589,1754562651454,-400.0,0.00019991,2]
[377809590,1754562651463,-1311.53,0.00019991,2]
[377809591,1754562651473,-400.0,0.00019991,2]
[377809592,1754562651484,-441.85,0.00019991,2]
[377809593,1754562651493,-400.0,0.00019991,2]
[377809594,1754562651506,-1502.93,0.00019991,2]
[377809595,1754562651515,-400.0,0.00019991,2]
[377809596,1754562651524,-875.72,0.00019991,2]
[377809597,1754562651534,-556.94,0.00019991,2]
[377809598,1754562651543,-400.0,0.00019991,2]
[377809600,1754562651552,-653.91,0.00019991,2]
[377809602,1754562651561,-945.96,0.00019991,2]
[377809604,1754562651571,-400.0,0.00019991,2]
[377809606,1754562651580,-1138.5,0.00019991,2]
[377809608,1754562651590,-1063.58,0.00019991,2]
[377809610,1754562651599,-957.36,0.00019991,2]
[377809612,1754562651610,-2288.63,0.00019991,2]
[377809614,1754562651620,-400.0,0.00019991,2]
[377809616,1754562651629,-400.0,0.00019991,2]
[377809618,1754562651638,-442.53,0.00019991,2]
[377809620,1754562651648,-437.43,0.00019991,2]
[377809622,1754562651657,-1724.36,0.00019991,2]
[377809624,1754562651667,-400.0,0.00019991,2]
[377809626,1754562651676,-452.98,0.00019991,2]
[377809628,1754562651686,-478.41498068,0.00019991,2]
[377809630,1754562651695,-400.0,0.00019991,2]
[377809632,1754562651705,-400.0,0.00019991,2]
[377809634,1754562651715,-400.0,0.00019991,2]
[377809636,1754562651724,-400.0,0.00019991,2]
[377809638,1754562651733,-400.0,0.00019991,2]
[377809640,1754562651742,-2019.79,0.00019991,2]
[377809642,1754562651754,-400.0,0.00019991,2]
[377809644,1754562651763,-482.04,0.00019991,2]
[377809646,1754562651773,-400.0,0.00019991,2]
[377809648,1754562651784,-400.47,0.00019991,2]
[377809650,1754562651794,-400.0,0.00019991,2]
[377809652,1754562651804,-910.86,0.00019991,2]
[377809654,1754562651813,-400.0,0.00019991,2]
[377809656,1754562651822,-542.74,0.00019991,2]
[377809658,1754562651832,-992.26,0.00019991,2]
[377809660,1754562651841,-1372.41,0.00019991,2]
[377809663,1754562651851,-496.35107403,0.00019991,2]
[377809665,1754562651861,-1935.0,0.00019991,2]
[377809667,1754562651870,-400.0,0.00019991,2]
[377809669,1754562651879,-598.52,0.00019991,2]
[377809671,1754562651889,-400.0,0.00019991,2]
[377809673,1754562651898,-520.87,0.00019991,2]
[377809674,1754562651907,-837.42,0.00019991,2]
[377809677,1754562651917,-514.45,0.00019991,2]
[377809679,1754562651927,-400.0,0.00019991,2]
[377809681,1754562651936,-1169.21,0.00019991,2]
[377809683,1754562651945,-166.958529,0.00019991,2]
[377809685,1754562651954,-400.0,0.00019991,2]
[377809687,1754562651964,-1295.07,0.00019991,2]
[377809689,1754562651973,-1789.44,0.00019991,2]
[377809691,1754562651981,-1151.7,0.00019991,2]
[377809693,1754562651990,-890.01,0.00019991,2]
[377809695,1754562652000,-457.21,0.00019991,2]
[377809696,1754562652009,-400.0,0.00019991,2]
[377809698,1754562652019,-400.0,0.00019991,2]
[377809700,1754562652028,-1549.27,0.00019991,2]
[377809702,1754562652037,-400.0,0.00019991,2]
[377809704,1754562652046,-400.0,0.00019991,2]
[377809706,1754562652055,-781.38,0.00019991,2]
[377809708,1754562652065,-400.0,0.00019991,2]
[377809710,1754562652074,-830.74,0.00019991,2]
[377809712,1754562652083,-800.36,0.00019991,2]
[377809714,1754562652092,-1725.29,0.00019991,2]
[377809716,1754562652101,-1007.79,0.00019991,2]
[377809718,1754562652110,-1957.11,0.00019991,2]
[377809720,1754562652119,-400.0,0.00019991,2]
[377809722,1754562652128,-400.0,0.00019991,2]
[377809724,1754562652137,-1225.75,0.00019991,2]
[377809726,1754562652147,-400.0,0.00019991,2]
[377809728,1754562652156,-1809.81,0.00019991,2]
[377809731,1754562652166,-400.0,0.00019991,2]
[377809732,1754562652175,-400.0,0.00019991,2]
[377809734,1754562652184,-1898.23,0.00019991,2]
[377809736,1754562652193,-426.06,0.00019991,2]
[377809739,1754562652202,-1058.79,0.00019991,2]